Cogmind - Beta 13 @@@ ROGUE MODE // 2024.04.03 @ 13:16:20 Player: f_ Result: Destroyed by as-82776 with Assembled Heavy Rifle Performance ------------- Evolutions (1) 500 Regions Visited (4) 800 Robots Destroyed (50) 250 Value Destroyed (1141) 1141 Prototype IDs (4) 80 Alien Tech Used (0) 0 Bonus (73) 73 TOTAL SCORE: 2844 Bonus ------- Follower Combat Kills 73 Cogmind --------- Core Integrity 0/400 Matter 300/300 Energy 268/275 System Corruption 2% Temperature Cool (0) Movement Walking (200) Ox1 Location -9/Mines Parts ------- > --- POWER (1) -------- Deuterium Engine > --- PROPULSION (2) --- Titanium Leg > --- UTILITY (4) ------ Large Storage Unit > --- WEAPON (2) ------- Makeshift Hammer > --- INVENTORY (15) --- Deuterium Engine Titanium Leg Improved Heat Sink Cooling System Signal Interpreter Weapon Shielding Hardened Light Armor Plating Hacking Suite Shock Rifle Shock Rifle Beamcaster Mini Grenade Launcher Datajack Peak State ------------ > --- POWER ------------ Light Nuclear Core > --- PROPULSION ------- Titanium Leg Titanium Leg > --- UTILITY ---------- Medium Storage Unit Improved Targeting Computer Makeshift ECM Suite > --- WEAPON ----------- Mini Grenade Launcher Makeshift Sword > --- INVENTORY -------- Improved Treads Titanium Leg Improved Heat Sink Small Storage Unit Signal Interpreter EM Pulse Gun Medium Laser Beamcaster Makeshift Hammer [Rating: 23] Favorites ----------- Power Light Nuclear Core Engine Ion Engine Power Core Light Nuclear Core Propulsion Titanium Leg Treads Improved Treads Leg Titanium Leg Utility Improved Targeting Computer Device Makeshift ECM Suite Storage Large Storage Unit Processor Improved Targeting Computer Protection Weapon Shielding Weapon Makeshift Hammer Energy Gun Medium Laser Launcher Mini Grenade Launcher Impact Weapon Makeshift Hammer Slashing Weapon Makeshift Sword Build | -11 -10 -10 -9 -9 ------- Run | Yrd Mat Min Mat Min Slots Evolved 2 | . . . 2 . Power . | . . . . . Propulsion . | . . . . . Utility 2 | . . . 2 . Weapon . | . . . . . Parts Attached 30 | 6 6 4 13 1 Power 5 | 1 1 . 3 . Engine 4 | 1 . . 3 . Core 1 | . 1 . . . Reactor . | . . . . . Propulsion 8 | 2 2 . 4 . Treads 3 | . 2 . 1 . Leg 5 | 2 . . 3 . Wheel . | . . . . . Hover . | . . . . . Flight . | . . . . . Utility 10 | 1 3 2 4 . Device 1 | . . . 1 . Storage 4 | 1 . 2 1 . Processor 3 | . 3 . . . Hackware . | . . . . . Protection 2 | . . . 2 . Artifact . | . . . . . Weapon 7 | 2 . 2 2 1 Energy Gun 2 | 2 . . . . Energy Cannon . | . . . . . Ballistic Gun . | . . . . . Ballistic Cannon . | . . . . . Launcher 1 | . . . 1 . Special Weapon . | . . . . . Impact Weapon 3 | . . 1 1 1 Slashing Weapon 1 | . . 1 . . Piercing Weapon . | . . . . . Special Melee Weapon . | . . . . . Unidentified Prototypes . | . . . . . Parts Lost 8 | . . . 6 2 Power 2 | . . . 2 . Propulsion 2 | . . . 1 1 Utility 3 | . . . 3 . Weapon 1 | . . . . 1 Highest Loss Streak 3 | . . . 3 2 To Critical Strikes 1 | . . . 1 . Average Slot Usage (%) 81 | . 95 100 71 66 Engine 5 | . 6 . 6 11 Core 5 | . 7 14 2 . Treads 10 | . 15 28 2 . Leg 13 | . 12 . 19 22 Storage 8 | . 5 2 11 11 Processor 10 | . 18 25 2 . Protection 1 | . . . 4 . Energy Gun 8 | . 28 13 . . Impact Weapon 8 | . . 10 9 11 Slashing Weapon 7 | . . 4 11 11 Naked Turns . | . . . . . Heaviest Build 35 | 13 13 20 35 34 Greatest Support 46 | 20 46 46 46 34 Greatest Overweight (x) 1 | . . . 1 . Average Overweight (x) . | . . . . . Largest Inventory Capacity 15 | 8 8 10 15 15 Average Capacity 10 | 6 6 5 12 15 Most Carried 14 | 5 5 6 13 14 Average Carried 7 | 1 3 4 9 13 Final Capacity 15 | 8 5 10 15 15 Final Carried 13 | 1 4 6 13 13 Class Distribution -------------------- 100% | Mutant Dominant Class ---------------- Mutant | -10/Materials Mutant | -10/Mines Mutant | -9/Materials Mutant | -9/Mines Resources | -11 -10 -10 -9 -9 ----------- Run | Yrd Mat Min Mat Min Matter Collected 533 | 76 186 83 152 36 Remotely . | . . . . . Salvage Created 1807 | . 337 152 1098 220 Parts 84 | . 14 12 51 7 Haulers Intercepted 2 | . 1 . 1 . Recyclers Shooed . | . . . . . Parts Field Recycled . | . . . . . Retrieved Matter . | . . . . . Parts Self-Destructed . | . . . . . Prevented . | . . . . . Kills | -11 -10 -10 -9 -9 ------- Run | Yrd Mat Min Mat Min Combat Hostiles Destroyed 37 | . 8 5 20 4 Melee 23 | . . 2 17 4 Guns 9 | . 7 2 . . AOE 1 | . . . 1 . Classes Destroyed 13 | . 4 3 5 1 Worker 3 | . . 1 2 . Builder 2 | . . . 1 1 Tunneler 1 | . . 1 . . Hauler 2 | . 1 . 1 . Recycler 4 | . . 1 2 1 Mechanic 1 | . . . 1 . Operator 1 | . . . 1 . Watcher 1 | . 1 . . . Swarmer 11 | . 3 5 3 . Grunt 18 | . 5 . 11 2 Brawler 1 | . . . 1 . Sentry 5 | . . . 5 . Assembled 2 | . . . . 2 Best Kill Streak 4 | . 3 4 4 3 Combat Bots Only 3 | . 3 3 3 2 Max Kills in Single Turn 1 | . 1 1 1 1 Gunslinging . | . . . . . Exploded 1 | . . . 1 . Melee 1 | . . 1 1 1 Uniques/NPCs Destroyed . | . . . . . Combat | -11 -10 -10 -9 -9 -------- Run | Yrd Mat Min Mat Min Hostile Shots Fired 146 | . 31 14 85 16 Missed 43 | . 9 3 26 5 Damage Taken 1546 | . 274 96 1008 168 Core 464 | . 55 8 349 52 Absorbed by Shields . | . . . . . Redirected to Shielding 13 | . . . 13 . Core Remaining (%) 87 | 100 . 74 . . Volleys Fired 35 | . 29 4 2 . Largest 2 | . 2 2 1 . Hottest 90 | . 90 90 30 . Shots Fired 68 | . 58 8 2 . Gun 66 | . 58 8 . . Cannon . | . . . . . Launcher 2 | . . . 2 . Special . | . . . . . Kinetic . | . . . . . Thermal 66 | . 58 8 . . Explosive 2 | . . . 2 . Electromagnetic . | . . . . . Robot Hit Streak 14 | . 14 6 3 . Robot Miss Streak 2 | . 2 2 . . Penetration Max . | . . . . . Secondary Targets 1 | . . 1 . . Max Gunslinging Chain 1 | . . 1 . . Shots Hit Robots 131 | . 43 11 63 14 Core Hits 47 | . 18 5 19 5 Critical Kills 1 | . . . 1 . Critical Parts Destroyed 7 | . . 1 6 . Critical Strikes 14 | . 3 1 10 . Burn 3 | . 3 . . . Smash 8 | . . 1 7 . Sever 3 | . . . 3 . Melee Attacks 122 | . . 9 96 17 Impact 64 | . . 1 59 4 Slashing 58 | . . 8 37 13 Piercing . | . . . . . Sneak Attacks 14 | . . 3 8 3 Combat Hostiles . | . . . . . Follow-up Attacks 10 | . . 1 6 3 Damage Inflicted 4451 | . 516 430 2829 676 Guns 562 | . 516 46 . . Cannons . | . . . . . Explosions 35 | . . . 35 . Melee 3851 | . . 381 2794 676 Ramming 3 | . . 3 . . Kinetic . | . . . . . Thermal 562 | . 516 46 . . Explosive 35 | . . . 35 . Electromagnetic . | . . . . . Impact 2109 | . . 58 1828 223 Slashing 1742 | . . 323 966 453 Piercing . | . . . . . Highest Corruption 2 | . . . 2 2 Average Corruption 2 | . . . 2 2 Corruption Purged . | . . . . . Corruption Blocked . | . . . . . Effects 16 | . . . 12 4 Message Errors 4 | . . . 4 . Matter Fused 5 | . . . 4 1 Heat Flow Errors 1 | . . . 1 . Energy Discharges 1 | . . . . 1 Parts Rejected 1 | . . . . 1 Data Loss (minor) 3 | . . . 3 . Alerts 1 | . . . . 1 Overload Shots . | . . . . . Overflow Damage 1009 | . . 177 701 131 Projectiles . | . . . . . Explosions . | . . . . . Melee 1009 | . . 177 701 131 Knockbacks 10 | . . 2 8 . Impact 9 | . . 1 8 . Kinetic . | . . . . . Secondary 1 | . . 1 . . Self-Inflicted Damage . | . . . . . Shots . | . . . . . Rammed 1 | . . 1 . . Targets Rammed 1 | . . 1 . . Kicked . | . . . . . Crushed . | . . . . . Highest Temperature 225 | . 225 128 147 . Average Temperature 82 | . 84 65 71 . Received Heat Transfer 521 | . 153 . 309 59 Siege Activations . | . . . . . Robots Corrupted . | . . . . . Combat Hostiles . | . . . . . Parts Fried 17 | . . . 14 3 Impact Corruptions 19 | . . 2 16 1 Robots Melted 1 | . 1 . . . Combat Hostiles 1 | . 1 . . . Parts Melted 9 | . 8 . 1 . Heat Transferred 1698 | . 1574 124 . . Parts Sabotaged . | . . . . . Parts Stolen . | . . . . . Parts Stripped . | . . . . . Power Chain Reactions . | . . . . . Alert | -11 -10 -10 -9 -9 ------- Run | Yrd Mat Min Mat Min Peak Influence 389 | . 232 89 389 109 Initial 49 | . . 16 34 49 Average 126 | . 60 41 205 90 Maximum Alert Level 1 | . 1 . 1 . Low Security (%) 73 | 100 97 100 45 100 Level 1 26 | . 2 . 54 . Level 2 . | . . . . . Level 3 . | . . . . . Level 4 . | . . . . . Level 5 . | . . . . . High Security . | . . . . . Max Security . | . . . . . Squads Dispatched 4 | . . . 4 . Investigation 2 | . . . 2 . Extermination . | . . . . . Reinforcement 2 | . . . 2 . Assault . | . . . . . Garrison . | . . . . . Intercept . | . . . . . Searches Triggered . | . . . . . Construction Impeded . | . . . . . Haulers Reinforced . | . . . . . Active Scanning Responses . | . . . . . Cargo Convoy Interrupts . | . . . . . Stealth | -11 -10 -10 -9 -9 --------- Run | Yrd Mat Min Mat Min Distress Signals 3 | . 1 . 2 . Communications Jammed . | . . . . . Distress Signals . | . . . . . Times Spotted 61 | . 13 6 30 12 Peak Tracking Total 13 | . 5 3 4 13 Tactical Retreats 6 | . 2 . 4 . Traps | -11 -10 -10 -9 -9 ------- Run | Yrd Mat Min Mat Min Traps Triggered 1 | . . . 1 . Indirectly . | . . . . . Trap Hack Attempts . | . . . . . Triggered . | . . . . . Disarmed . | . . . . . Reprogrammed . | . . . . . Reused . | . . . . . Traps Extracted . | . . . . . Installed . | . . . . . Triggered . | . . . . . Most Traps Carried 1 | . . 1 . . Machines | -11 -10 -10 -9 -9 ---------- Run | Yrd Mat Min Mat Min Machines Disabled . | . . . . . Max in Single Turn . | . . . . . Machines Repaired . | . . . . . Machines Dismantled . | . . . . . Machines Sabotaged . | . . . . . Overloaded Fab Kills . | . . . . . Hacking | -11 -10 -10 -9 -9 --------- Run | Yrd Mat Min Mat Min Machines Accessed 9 | . 3 . 6 . Terminals 9 | . 3 . 6 . Fabricators . | . . . . . Repair Stations . | . . . . . Recycling Units . | . . . . . Scanalyzers . | . . . . . Garrison Access . | . . . . . Total Hacks 22 | . 7 . 15 . Successful 8 | . 2 . 6 . Failed 14 | . 5 . 9 . Catastrophic 6 | . 2 . 4 . Database Lockouts . | . . . . . Manual 21 | . 7 . 14 . Terminals 22 | . 7 . 15 . Fabricators . | . . . . . Repair Stations . | . . . . . Recycling Units . | . . . . . Scanalyzers . | . . . . . Garrison Access . | . . . . . Terminal Hacks 6 | . 1 . 5 . Prototype ID Bank 2 | . 1 . 1 . Branch Access Points 1 | . . . 1 . Terminal Index 1 | . . . 1 . Alert Level 1 | . . . 1 . Unreport Threat 1 | . . . 1 . Fabricator Hacks . | . . . . . Repair Station Hacks . | . . . . . Recycling Unit Hacks . | . . . . . Scanalyzer . | . . . . . Garrison Access Hacks . | . . . . . Unauthorized Hacks 2 | . 1 . 1 . Terminals 2 | . 1 . 1 . Botnet 2 | . 1 . 1 . Fabricators . | . . . . . Repair Stations . | . . . . . Recycling Units . | . . . . . Scanalyzers . | . . . . . Garrison Access . | . . . . . Data Cores Recovered . | . . . . . Used . | . . . . . Hacking Detections 4 | . 2 . 2 . Full Trace Events 2 | . 1 . 1 . Feedback Events . | . . . . . Feedback Blocked . | . . . . . Robot Schematics Acquired . | . . . . . Robots Built . | . . . . . Authchips . | . . . . . Time . | . . . . . Total Robot Build Rating . | . . . . . Part Schematics Acquired . | . . . . . Parts Built . | . . . . . Authchips . | . . . . . Time . | . . . . . Total Part Build Rating . | . . . . . Parts Repaired . | . . . . . Time . | . . . . . Parts Recycled . | . . . . . Recycled Matter . | . . . . . Retrieved Matter . | . . . . . Retrieved Components . | . . . . . Parts Scanalyzed . | . . . . . Part Schematics Acquired . | . . . . . Parts Damaged . | . . . . . Bothacking | -11 -10 -10 -9 -9 ------------ Run | Yrd Mat Min Mat Min Used RIF Installer . | . . . . . Robots Hacked . | . . . . . Non-combat . | . . . . . Combat . | . . . . . Robot Hacks Applied . | . . . . . Relay Couplers Released . | . . . . . Fabnet Peak Effective % . | . . . . . Robots Rewired . | . . . . . Allies Hacked . | . . . . . Hacks Repelled . | . . . . . Allies | -11 -10 -10 -9 -9 -------- Run | Yrd Mat Min Mat Min Total Allies 2 | . . 2 . . Largest Group 2 | . . 2 1 . Highest-Rated Group 46 | . . 46 31 . Highest-Rated Ally 31 | . . 31 31 . Total Orders . | . . . . . Ally Attacks 20 | . . 5 15 . Total Damage 235 | . . 44 191 . Kills 4 | . . 1 3 . Allies Corrupted . | . . . . . Allies Melted . | . . . . . Intel | -11 -10 -10 -9 -9 ------- Run | Yrd Mat Min Mat Min Robot Analysis Total . | . . . . . Derelict Logs Recovered 2 | . . 2 . . Drone Launches . | . . . . . Drone Recoveries . | . . . . . Exploration | -11 -10 -10 -9 -9 ------------- Run | Yrd Mat Min Mat Min Turns Passed 2743 | 38 484 636 1292 293 Spaces Moved 1534 | 26 266 366 685 191 Core 8 | 8 . . . . Treads 560 | . 115 366 79 . Legs 966 | 18 151 . 606 191 Wheels . | . . . . . Hover . | . . . . . Flight . | . . . . . Fastest Speed 50 | 50 120 160 130 130 Average Speed 139 | 98 137 160 134 130 Slowest Speed 240 | 120 160 160 240 130 Overloaded Moves . | . . . . . Propulsion Burnouts . | . . . . . Robots Hopped . | . . . . . Cave-ins Triggered 1 | . . . 1 . Exploration Rate (%) 47 | 4 52 73 58 48 Regions Visited 4 Branch Regions 2 Pre-discovered Areas . | . . . . . Known Exits Taken 1 | . . . 1 . Unknown Exits Taken 3 | 1 1 1 . . Scrap Searched 1 | . . . . 1 Spaces Dug 9 | . . . 9 . Terrain Destroyed 33 | . . . 33 . Melee 9 | . . . 9 . Projectile . | . . . . . AOE 24 | . . . 24 . Terrain Rammed . | . . . . . Walls Destroyed . | . . . . . Machines Disabled . | . . . . . Actions | -11 -10 -10 -9 -9 --------- Run | Yrd Mat Min Mat Min Total 1962 | 38 328 400 973 223 Wait 204 | . 14 10 164 16 Move 1530 | 25 265 365 684 191 Hop . | . . . . . Pick Up 38 | 7 9 4 17 1 Fast Attach 5 | . . 2 3 . Attach 16 | 6 3 . 6 1 Detach 1 | . . . 1 . Swap 9 | . 3 2 4 . Drop 17 | . 5 4 8 . Fire 35 | . 29 4 2 . Melee 106 | . . 8 84 14 Ram . | . . . . . Kick . | . . . . . Crush 1 | . . 1 . . Escape Stasis . | . . . . . Rewire . | . . . . . Trap . | . . . . . Miscellaneous . | . . . . . Route ------- -11/Scrapyard -10/Materials (discovered 2 exits: *Mat / [*Min]) -10/Mines (discovered 2 exits: *Mat / Sub) -9/Materials (discovered 5 exits: *Mat x3 / *Min x2) -9/Mines (discovered 1 exit: *Mat) History --------- Turn | Location | Event 7 | -11/Scrapyard | Discovered new exit (range 16) 39 | -11/Scrapyard | Entered Materials 317 | -10/Materials | Build established: Mutant 367 | -10/Materials | Discovered new exit (range 8) 414 | -10/Materials | Discovered new exit (range 14) 523 | -10/Materials | Entered Mines 533 | -10/Mines | Identified exit to Subcaves 557 | -10/Mines | Found a hidden stash of uninstalled traps 914 | -10/Mines | Learned 8 Materials zone layouts 965 | -10/Mines | A weapon hastily lodged in a ceiling crevice suddenly fell to the ground 1139 | -10/Mines | Discovered new exit (range 7) 1159 | -10/Mines | Entered Materials 1159 | -9/Materials | Accompanied by 1 ally 1159 | -9/Materials | Evolved 2 slots: Utility x2 1160 | -9/Materials | Identified exit to Mines 1160 | -9/Materials | Identified exit to Materials 1164 | -9/Materials | Led the pair of lost Derelicts to an unsafe place 1397 | -9/Materials | Crushed by falling debris 1458 | -9/Materials | Lost 3 parts (1p2u) 1662 | -9/Materials | Core integrity fell below 50% 1705 | -9/Materials | Discovered exit to Materials (range 13) 2199 | -9/Materials | Core integrity fell below 20% 2451 | -9/Materials | Entered Mines 2458 | -9/Mines | Discovered exit to Materials (range 16) 2460 | -9/Mines | Met a Derelict bent on vengeance 2716 | -9/Mines | Assembled infested the area 2744 | -9/Mines | Destroyed by as-82776 with Assembled Heavy Rifle Last Messages --------------- 02550_ R-06 Scavenger destroyed. 02551_ R-06 Scavenger collects Aluminum Leg. 02554_ Acquired 17 matter. 02554_ R-06 Scavenger collects Sml. Laser. 02595_ R-06 Scavenger collects Lgt. Ion Engine. 02601_ R-06 Scavenger collects Aluminum Leg. 02604_ K-01 Serf collects debris. 02655_ System corrupted: IFF burst signal emitted. 02686_ System corrupted: Energy discharge (-96). 02716_ ALERT: Infestation in the mines, dispatching Demolisher response squad. 02717_ Searching scrap... 02717_ Found Ion Engine. 02717_ Found 23 Matter. 02738_ Destroyed Asb. Hover Unit. 02740_ as-39626 destroyed. 02742_ as-53895 destroyed. 02743_ Mak. Sword destroyed. 02743_ Titanium Leg destroyed. Map ----- +----------------------------------------------------+ | ????????????????????????????# ????# #???####???? | | ???????????????????????????## ### ##### ####? | | ???????????????????????????# ## | | ?????????????????????????# #### # | | ???????????????????????? #??????###### | | ??????????????????????? ????????????????# | | ????????????????????????????????????????## | | ?????????????????????????????????????????## # | | ??????????????????????????????????????????## ## | | ???????????????????????????????????????????# ###? | | ??????????????????????????????????????????## #??? | | ?????????????????????????????????????????## #??? | | ????????????????????????????????????????## ##?? | | ??????????????????????????????????????### ### | | ????????????????????????????#######??## | | ????????????????????????????? #??# ## | | ?????????????????????????????? #??# #? | | ???????????????????????????????# #?## #? | | ???????????????????????????????# ### ## ##? | | ??????????????????????????????## ######?? | | ?????????????????????????????## ##?????? | | ?????????????????????????????# ##????# | | ????????# ################# ##??## | | ?????? $ a *a ## #### | | ?????? aa ## | | ?????? ###########@ ### | | ????????????????????????# ##?## | | ????????????????????????# #???## | | ????????????????????????## ## ##????## | | ?????????????????????????###### #####??????##### | | ??????????????????????????????## ##??????????????? | | ???????????????????????????????###???????????????? | | ?????????????????????????????????????????????????? | | ?????????????????????????????????????????????????? | | ?????????????????????????????????????????????????? | | ?????????????????????????????????????????????????? | | ?????????????????????????????????????????????????? | | ?????????????????????????????????????????????????? | | ?????????????????????????????????????????????????? | | ?????????????????????????????????????????????????? | | ?????????????????????????????????????????????????? | | ?????????????????????????????????????????????????? | | | | | | | | | | | | | | | | | +----------------------------------------------------+ Best States ------------- Heat Dissipation 28 Energy Generation 14 Energy Capacity 275 Matter Stores 300 Matter Capacity 300 Sight Range 16 Terrain Scan Density 10 ECM Strength 2 Armor Coverage 150 Weapon Shielding 33 Evasion (%) 55 Targeting Accuracy 12 Recoil Reduction 2 Item Schematics ----------------- None Robot Schematics ------------------ None Fabricated ------------ Nothing Alien Tech Used ----------------- None Achievements -------------- None Challenges ------------ None Game ------ Seed ThermalPulseOptics Manual? 0 Play Time 00:28:19 Cumulative 110.6 hours Start 2024.04.03 @ 12:49:30 End 2024.04.03 @ 13:16:20 Sessions 1 Manual Loads 0 Difficulty Rogue Special Mode None Game No. 114 Rogue 111 Adventurer 0 Explorer 3 Win Type - Total 0 Types 0/0/0/0/0/0/0/0/0 Lore% 31 Gallery% 47 Achievement% 34 Wizard Run 0 Options --------- Layout 1 ASCII 0 Keyboard 0 Movement Numpad Keybinds 0 Fullscreen 2 Font 24/Tamsyn Map View 50x35 Zoom Use 0% Tactical HUD 1 Map Filters NONE Filters NONE Steam 1 RUN: 9ee1d697-2fc4-4656-a5a2-20c9d5c0ee01